bitfinex/quotes_SOLUSD_20241210
["timestamp","ask_amount","ask_price","bid_price","bid_amount"]
[1733841844799,2.72974892,217.6,217.42,0.12549]
[1733841844800,0.86168899,217.67,217.55,36.43968357]
[1733841844997,0.86150208,217.74,217.57,36.43968357]
[1733841845574,2.8023545,217.7,217.59,36.43968357]
[1733841845878,2.2965,217.72,217.57,312.0]
[1733841845879,0.86132738,217.69,217.57,312.0]
[1733841846095,0.2794575,217.63,217.57,312.0]
[1733841846673,0.2794575,217.63,217.58,36.43968357]
[1733841846982,0.2794575,217.63,217.59,36.43968357]
[1733841847185,0.2794575,217.63,217.59,30.0]
[1733841847374,0.2794575,217.63,217.51,36.43968357]
[1733841847586,0.25098,217.62,217.46,66.43968357]
[1733841847897,0.25098,217.62,217.14,38.67007464]
[1733841847898,0.25098,217.59,217.37,30.0]
[1733841848109,0.25098,217.59,217.43,36.43968357]
[1733841848110,11.11297059,217.59,217.43,36.43968357]
[1733841848309,20.0,217.55,217.47,36.43968357]
[1733841848465,23.902374,217.58,217.49,36.43968357]
[1733841848466,23.776884,217.58,217.49,36.43968357]
[1733841848811,2.5769575,217.63,217.52,66.43968357]
[1733841848812,0.2794575,217.63,217.52,66.43968357]
[1733841848969,0.2794575,217.63,217.5,36.43968357]
[1733841849210,2.2975,217.62,217.48,36.43968357]
[1733841849454,2.2975,217.62,217.4,36.43968357]
[1733841849455,1.11269034,217.61,217.4,36.43968357]
[1733841849739,0.25098,217.57,217.41,0.84107052]
[1733841850042,0.25098,217.51,217.41,0.84107052]
[1733841850221,0.12549,217.46,217.41,0.84107052]
[1733841850542,20.0,217.44,217.41,0.84107052]
[1733841850908,0.12549,217.42,217.41,0.84107052]
[1733841851249,0.12549,217.42,217.22,36.43968357]
[1733841851250,0.37647,217.38,217.22,36.43968357]
[1733841851555,20.0,217.35,217.25,36.43968357]
[1733841851844,1.23906987,217.34,217.26,0.84165121]
[1733841852137,20.0,217.3,217.26,0.84165121]
[1733841852509,20.12549,217.35,217.26,0.84165121]
[1733841852715,0.12549,217.33,217.26,0.84165121]
[1733841852915,20.0,217.31,217.26,0.84165121]
[1733841853436,0.12549,217.37,217.26,37.28133478]
[1733841853607,0.12549,217.37,217.27,36.43968357]
[1733841853808,0.25098,217.37,217.28,0.84157374]
[1733841854054,0.25098,217.34,217.28,0.84157374]
[1733841854207,0.12549,217.33,217.28,0.84157374]
[1733841854412,0.25098,217.3,217.28,0.84157374]
[1733841854631,0.25098,217.3,217.19,3.24]
[1733841854632,0.12549,217.28,217.19,3.24]
[1733841854805,20.0,217.26,217.19,0.84192247]
[1733841855116,0.12549,217.34,217.21,36.43968357]
[1733841855438,0.12549,217.32,217.2,36.43968357]
[1733841855638,0.25098,217.32,217.2,37.28156728]
[1733841855823,20.0,217.33,217.21,37.28152852]
[1733841856017,2.7186286,217.38,217.27,36.43968357]
[1733841856333,2.2995,217.44,217.29,36.43968357]
[1733841856513,2.2995,217.44,217.31,312.0]
[1733841856709,2.299,217.49,217.32,36.43968357]
[1733841857029,0.86230286,217.51,217.36,36.43968357]
[1733841857332,0.86213806,217.52,217.37,36.43968357]
[1733841857847,2.75569193,217.49,217.37,36.43968357]
[1733841858019,2.75569193,217.49,217.4,36.43968357]
[1733841858227,2.75569193,217.49,217.33,30.0]
[1733841858228,2.75569193,217.49,217.36,36.43968357]
[1733841858421,3.16117227,217.48,217.32,36.43968357]
[1733841858727,0.12549,217.47,217.26,36.43968357]
[1733841858933,0.25098,217.45,217.28,36.43968357]
[1733841859113,0.12549,217.44,217.29,36.43968357]
[1733841859307,0.12549,217.42,217.29,36.43968357]
[1733841859524,0.12549,217.42,217.25,30.0]
[1733841859525,20.0,217.4,217.28,36.43968357]
[1733841859726,20.0,217.4,217.29,36.43968357]
[1733841859926,20.0,217.46,217.33,36.43968357]
[1733841860231,0.25098,217.44,217.34,36.43968357]
[1733841860437,5.05469193,217.49,217.37,36.43968357]
[1733841860644,0.86229851,217.52,217.39,36.43968357]
[1733841860845,3.8136,217.54,217.43,36.43968357]
[1733841860846,2.2985,217.54,217.43,36.43968357]
[1733841861140,0.86204204,217.58,217.44,36.43968357]
[1733841861141,2.5774575,217.58,217.44,36.43968357]
[1733841861341,0.86181669,217.57,217.41,36.43968357]
[1733841861637,0.86181669,217.57,217.37,30.0]
[1733841861638,2.2984,217.54,217.38,36.43968357]
[1733841861847,2.2984,217.54,217.42,36.43968357]
[1733841862056,2.5774575,217.58,217.45,36.43968357]
[1733841862274,2.5774575,217.58,217.44,36.43968357]
[1733841862547,2.75104061,217.56,217.43,36.43968357]
[1733841862734,0.25098,217.55,217.44,36.43968357]
[1733841862937,1.11288228,217.55,217.37,36.43968357]
[1733841863324,0.12549,217.51,217.34,36.43968357]
[1733841863522,0.12549,217.49,217.38,36.43968357]
[1733841863722,0.12549,217.49,217.39,36.43968357]
[1733841863948,20.0,217.48,217.4,36.43968357]
[1733841864528,0.25098,217.52,217.39,36.43968357]
[1733841864736,9.4714575,217.58,217.49,36.43968357]
[1733841864737,0.2794575,217.58,217.49,36.43968357]
[1733841865046,0.2794575,217.58,217.36,36.43968357]
[1733841865047,0.84591466,217.57,217.54,36.43968357]
[1733841865243,0.84591466,217.57,217.53,36.43968357]
[1733841865552,0.84591466,217.57,217.52,36.43968357]
[1733841865741,0.84591466,217.57,217.5,36.43968357]
[1733841865946,0.84591466,217.57,217.46,36.43968357]
[1733841866248,0.84591466,217.57,217.47,36.43968357]
[1733841866450,0.12549,217.56,217.49,36.43968357]
[1733841866754,0.12549,217.56,217.48,36.43968357]
[1733841867258,0.12549,217.52,217.45,312.0]
[1733841867466,24.027864,217.52,217.39,36.43968357]
[1733841867663,20.0,217.49,217.39,36.43968357]
[1733841868162,0.12549,217.56,217.38,30.0]
[1733841868457,0.12549,217.57,217.48,36.43968357]
[1733841868630,0.37647,217.57,217.45,36.43968357]
[1733841868831,0.12549,217.54,217.41,36.43968357]
[1733841869133,23.902374,217.52,217.34,30.0]
[1733841869336,0.12549,217.48,217.34,36.43968357]
[1733841869557,20.0,217.44,217.3,30.0]
[1733841869735,2.2985,217.53,217.27,6.227]
[1733841869736,0.12549,217.39,217.28,36.43968357]
[1733841870133,0.12549,217.39,217.27,6.227]
[1733841870134,0.25098,217.39,217.27,42.66668357]
[1733841870333,0.25098,217.39,217.27,312.0]
[1733841870334,1.11351309,217.39,217.27,312.0]
[1733841870540,0.12549,217.34,217.26,36.43968357]
[1733841870859,20.0,217.41,217.31,36.43968357]
[1733841871028,0.37647,217.36,217.22,36.43968357]
[1733841871235,0.12549,217.32,217.2,36.43968357]
[1733841871431,0.25098,217.3,217.17,36.43968357]
[1733841871629,0.25098,217.27,217.13,36.43968357]
[1733841871831,20.0,217.23,217.11,36.43968357]
[1733841872269,20.0,217.19,217.07,36.43968357]
[1733841872442,20.0,217.19,217.05,2.96518899]
[1733841872443,24.89122316,217.18,217.05,2.96518899]
[1733841872635,24.89122316,217.18,217.04,2.96518899]
[1733841872636,0.25098,217.14,217.04,2.96518899]
[1733841872854,0.86356439,217.14,217.05,36.43968357]
[1733841873051,0.12549,217.21,217.05,36.43968357]
[1733841873239,20.0,217.18,217.06,36.43968357]
[1733841873564,20.0,217.14,217.06,312.0]
[1733841873967,0.12549,217.13,217.03,2.96518899]
[1733841874263,0.25098,217.13,217.03,2.96518899]
[1733841874565,0.25098,217.11,217.02,2.96518899]
[1733841875060,0.25098,217.13,217.02,2.96518899]
[1733841875272,20.0,217.12,217.04,36.43968357]
[1733841875431,20.0,217.12,217.06,36.43968357]
[1733841875635,24.027864,217.11,217.05,2.96518899]
[1733841875832,0.12549,217.07,217.03,2.96518899]
[1733841876628,0.12549,217.15,217.04,2.96518899]
[1733841876833,20.0,217.12,217.04,2.96518899]
[1733841877154,0.12549,217.11,217.05,2.96518899]
[1733841877456,2.79298238,217.19,217.07,39.40487256]
[1733841877664,2.3013,217.26,217.1,36.43968357]
[1733841877858,2.3013,217.26,217.09,2.96518899]
[1733841877859,0.25098,217.2,217.09,2.96518899]
[1733841878036,20.0,217.16,217.07,2.96518899]
[1733841878364,0.12549,217.13,217.06,2.96518899]
[1733841878564,0.98933831,217.13,217.06,2.96518899]
[1733841878951,20.0,217.09,217.06,2.96518899]
[1733841879166,20.0,217.09,217.07,2.96518899]
[1733841879367,0.12549,217.08,216.96,36.43968357]
[1733841879679,10.0,217.18,216.96,66.43968357]
[1733841879839,23.776884,217.12,217.08,3.00262937]
[1733841880045,20.12549,217.09,217.08,3.00262937]
[1733841880246,44.153354,217.09,217.08,3.00262937]
[1733841880460,44.153354,217.09,216.97,36.43968357]
[1733841880461,20.0,217.09,216.97,36.43968357]
[1733841880765,20.0,217.09,217.08,3.00761951]
[1733841880766,44.153354,217.09,217.08,3.00761951]
[1733841880947,44.153354,217.09,216.91,36.43968357]
[1733841880948,0.12549,217.07,216.91,36.43968357]
[1733841881152,2.71330538,217.1,216.9,6.6512]
[1733841881153,0.12549,217.03,216.9,6.6512]
[1733841881350,0.12549,217.0,216.9,6.6512]
[1733841881549,20.0,217.01,216.9,6.6512]
[1733841882439,2.71330538,217.1,216.95,36.43968357]
[1733841882642,23.776884,217.09,216.95,36.43968357]
[1733841882900,20.0,217.06,216.95,36.43968357]
[1733841883039,0.86379306,217.16,217.01,36.43968357]
[1733841883244,2.3025,217.15,217.01,312.0]
[1733841883439,18.447533,217.16,217.02,36.43968357]
[1733841883640,0.8635302,217.15,217.02,36.43968357]
[1733841883864,0.86356424,217.18,217.02,36.43968357]
[1733841884067,0.86356424,217.18,217.04,36.43968357]
[1733841884365,2.79812059,217.21,217.08,36.43968357]
[1733841884567,10.996,217.27,217.12,36.43968357]
[1733841884568,0.86331267,217.26,217.12,36.43968357]
[1733841884751,0.86315579,217.3,217.13,36.43968357]
[1733841884947,0.86308243,217.31,217.17,36.43968357]
[1733841885140,0.25098,217.29,217.17,36.43968357]
[1733841885345,0.862935,217.44,217.28,36.43968357]
[1733841885547,2.76863318,217.43,217.31,36.43968357]
[1733841885741,0.86253549,217.42,217.31,36.43968357]
[1733841885941,0.86248635,217.5,217.35,36.43968357]
[1733841886338,0.86248635,217.5,217.25,36.43968357]
[1733841886339,0.86248635,217.5,217.34,36.43968357]
[1733841886544,0.86248635,217.5,217.35,36.43968357]
[1733841886767,2.80648774,217.48,217.37,36.43968357]
[1733841887083,2.80648774,217.48,217.35,312.0]
[1733841887084,0.86220833,217.47,217.35,348.43968357]
[1733841887457,2.80648774,217.48,217.36,36.43968357]
[1733841887774,0.86227739,217.51,217.39,36.43968357]
[1733841887975,0.86213895,217.56,217.39,36.43968357]
[1733841888171,0.86213895,217.56,217.42,36.43968357]
[1733841888563,0.2794575,217.58,217.51,36.43968357]
[1733841888764,0.2794575,217.58,217.57,36.43968357]
[1733841889069,0.2794575,217.58,217.53,36.43968357]
[1733841889684,0.2794575,217.58,217.55,36.43968357]
[1733841889890,0.2794575,217.58,217.51,36.43968357]
[1733841890197,0.12549,217.57,217.45,36.43968357]
[1733841890426,0.2794575,217.58,217.52,36.43968357]
[1733841890574,0.2794575,217.58,217.4,10.0]
[1733841890575,0.2794575,217.58,217.48,36.43968357]
[1733841890770,0.42924671,217.57,217.52,36.43968357]
[1733841890970,0.42924671,217.57,217.52,348.43968357]
[1733841892107,0.42924671,217.57,217.56,36.43968357]
[1733841892385,0.42924671,217.57,217.52,348.43968357]
[1733841892591,0.42924671,217.57,217.49,30.0]
[1733841892592,0.42924671,217.57,217.56,36.43968357]
[1733841892777,0.42924671,217.57,217.56,66.43968357]
[1733841892960,18.400598,217.73,217.57,8.2012]
[1733841893167,0.86142676,217.75,217.63,36.43968357]
[1733841893393,0.86119084,217.74,217.63,36.43968357]
[1733841893685,2.69374607,217.74,217.61,36.43968357]
[1733841894197,0.86127214,217.76,217.59,30.0]
[1733841894198,0.8611792,217.76,217.59,30.0]
[1733841894378,2.2955,217.82,217.58,36.43968357]
[1733841894379,0.86109187,217.81,217.69,36.43968357]
[1733841894581,1.6178212,217.87,217.71,36.43968357]
[1733841894980,0.25098,217.8,217.71,36.43968357]
[1733841895181,0.86094471,217.85,217.73,36.43968357]
[1733841895492,0.7568391,217.87,217.8,36.43968357]
[1733841895696,0.7568391,217.87,217.78,36.43968357]
[1733841896071,0.7568391,217.87,217.76,36.43968357]
[1733841896290,0.7568391,217.87,217.78,36.43968357]
[1733841897170,0.7568391,217.87,217.83,36.43968357]
[1733841897696,0.7568391,217.87,217.84,36.43968357]
[1733841897929,0.7568391,217.87,217.86,36.43968357]
[1733841898578,0.7568391,217.87,217.86,66.43968357]
[1733841899271,0.7568391,217.87,217.86,378.43968357]
[1733841899475,0.7568391,217.87,217.86,348.43968357]
[1733841899704,0.7568391,217.87,217.85,36.43968357]
[1733841900071,0.7568391,217.87,217.86,36.43968357]
[1733841901107,0.7568391,217.87,217.77,36.43968357]
[1733841901412,20.12549,217.86,217.68,42.80588357]
[1733841901569,20.12549,217.86,217.58,46.43968357]
[1733841901570,0.25098,217.81,217.63,36.43968357]
[1733841901783,0.25098,217.81,217.57,6.3662]
[1733841901784,0.25098,217.73,217.59,36.43968357]
[1733841901985,0.25098,217.73,217.61,36.43968357]
[1733841901986,23.776884,217.72,217.61,36.43968357]
[1733841902184,23.776884,217.72,217.56,30.0]
[1733841902185,0.98670204,217.71,217.56,36.43968357]
[1733841902429,0.12549,217.66,217.53,36.43968357]
[1733841902707,0.12549,217.62,217.53,36.43968357]
[1733841903105,1.23808045,217.62,217.48,36.43968357]
[1733841903282,1.23808045,217.62,217.41,31.5716]
[1733841903283,10.0,217.61,217.44,66.43968357]
[1733841903595,10.0,217.61,217.38,36.43968357]
[1733841903596,2.42399,217.53,217.38,36.43968357]
[1733841903783,2.42399,217.53,217.4,36.43968357]
[1733841903784,0.37647,217.51,217.4,36.43968357]
[1733841903984,4.596,217.58,217.48,36.43968357]
[1733841903985,0.86214784,217.57,217.48,36.43968357]
[1733841904188,3.60434432,217.61,217.5,36.43968357]
[1733841904405,3.60434432,217.61,217.36,42.80588357]
[1733841904406,0.86168157,217.61,217.46,36.43968357]
[1733841904608,0.25098,217.6,217.42,30.0]
[1733841904808,0.25098,217.55,217.38,36.43968357]
[1733841905012,0.12549,217.51,217.36,36.43968357]
[1733841905305,20.0,217.54,217.43,36.43968357]
[1733841905609,22.52705747,217.75,217.3,1.5716]
[1733841905610,0.12549,217.5,217.35,36.43968357]
[1733841905793,0.12549,217.49,217.37,36.43968357]
[1733841906110,0.86226174,217.54,217.42,36.43968357]
[1733841906316,0.12549,217.55,217.43,36.43968357]
[1733841906523,0.25098,217.53,217.38,30.0]
[1733841906822,0.12549,217.52,217.41,36.43968357]
[1733841907188,0.12549,217.5,217.41,36.43968357]
[1733841907410,0.12549,217.5,217.35,30.0]
[1733841907411,0.25098,217.5,217.4,36.43968357]
[1733841907612,10.0,217.6,217.3,11.5716]
[1733841907613,0.86213953,217.54,217.46,36.43968357]
[1733841907814,0.12549,217.56,217.39,36.43968357]
[1733841907989,0.12549,217.56,217.33,36.43968357]
[1733841907990,0.12549,217.51,217.33,36.43968357]
[1733841908190,0.25098,217.49,217.28,36.43968357]
[1733841908407,20.0,217.43,217.24,49.522684]
[1733841908616,20.0,217.43,217.24,13.08300043]
[1733841908617,0.25098,217.39,217.24,13.08300043]
[1733841908920,20.0,217.4,217.3,36.43968357]
[1733841909122,0.12549,217.38,217.22,36.43968357]
[1733841909413,0.12549,217.38,217.25,36.43968357]
[1733841909414,0.12549,217.35,217.25,36.43968357]
[1733841909607,0.12549,217.42,217.32,36.43968357]
[1733841909820,0.12549,217.42,217.29,36.43968357]
[1733841910138,20.0,217.44,217.33,36.43968357]
[1733841910417,0.86226016,217.51,217.35,36.43968357]
[1733841910589,3.16044647,217.55,217.4,36.43968357]
[1733841910790,3.16044647,217.55,217.42,36.43968357]
[1733841910997,0.1089848,217.57,217.36,66.43968357]
[1733841910998,0.97105645,217.57,217.44,36.43968357]
[1733841911299,2.79773843,217.54,217.35,6.3662]
[1733841911508,0.8622358,217.53,217.35,6.3662]
[1733841911689,2.79773843,217.54,217.43,36.43968357]
[1733841911889,0.1089848,217.57,217.47,36.43968357]
[1733841912085,0.1089848,217.57,217.41,36.43968357]
[1733841912289,3.05904467,217.57,217.46,36.43968357]
[1733841912518,0.1089848,217.57,217.46,36.43968357]
[1733841912703,0.1089848,217.57,217.5,36.43968357]
[1733841912887,0.1089848,217.57,217.52,36.43968357]
[1733841913395,0.1089848,217.57,217.47,66.43968357]
[1733841913396,0.1089848,217.57,217.46,36.43968357]
[1733841913591,0.1089848,217.57,217.53,36.43968357]
[1733841913808,0.1089848,217.57,217.49,36.43968357]
[1733841914109,0.1089848,217.57,217.48,36.43968357]
[1733841914289,0.1089848,217.57,217.5,36.43968357]
[1733841914486,0.1089848,217.57,217.52,36.43968357]
[1733841914915,0.1089848,217.57,217.49,30.0]
[1733841914916,0.1089848,217.57,217.56,36.43968357]
[1733841915113,0.1089848,217.57,217.54,36.43968357]
[1733841915455,0.1089848,217.57,217.56,36.43968357]
[1733841915928,0.1089848,217.57,217.56,348.43968357]
[1733841916633,0.1089848,217.57,217.54,36.43968357]
[1733841916839,0.1089848,217.57,217.52,36.43968357]
[1733841917009,0.1089848,217.57,217.56,36.43968357]
[1733841917321,0.1089848,217.57,217.56,72.87936714]
[1733841917514,0.86114772,217.81,217.63,30.0]
[1733841917816,0.86114772,217.81,217.59,20.0]
[1733841917817,0.12549,217.78,217.69,36.43968357]
[1733841918016,3.64476706,217.81,217.62,30.0]
[1733841918017,2.78387082,217.81,217.71,36.43968357]
[1733841918214,0.86093974,217.8,217.67,36.43968357]
[1733841918394,0.86093974,217.78,217.65,36.43968357]
[1733841918595,0.86093974,217.78,217.67,36.43968357]
[1733841918796,0.5697019,217.79,217.69,36.43968357]
[1733841919103,0.5697019,217.79,217.72,36.43968357]
[1733841919313,0.5697019,217.79,217.68,36.43968357]
[1733841919618,0.86102962,217.78,217.68,312.0]
[1733841919789,0.25098,217.77,217.68,312.0]
[1733841920219,0.25098,217.77,217.57,11.4901]
[1733841920220,0.12549,217.74,217.59,36.43968357]
[1733841920401,0.12549,217.72,217.56,36.43968357]
[1733841920612,0.12549,217.72,217.55,6.1834]
[1733841920613,0.12549,217.72,217.6,36.43968357]
[1733841920796,0.12549,217.72,217.58,36.43968357]
[1733841920998,0.12549,217.7,217.52,1.6312]
[1733841921306,0.12549,217.66,217.5,36.43968357]
[1733841921514,0.12549,217.61,217.48,36.43968357]
[1733841921716,0.12549,217.61,217.37,20.0]
[1733841921717,0.12549,217.57,217.42,36.43968357]
[1733841921897,21.2384656,217.57,217.42,36.43968357]
[1733841922097,21.2384656,217.57,217.37,30.0]
[1733841922098,21.2384656,217.57,217.44,36.43968357]
[1733841922421,0.12549,217.54,217.4,36.43968357]
[1733841922619,0.12549,217.52,217.4,36.43968357]
[1733841922824,12.298,217.58,217.46,36.43968357]
[1733841922825,20.0,217.55,217.46,36.43968357]
[1733841923028,0.98739371,217.54,217.4,36.43968357]
[1733841923209,0.12549,217.52,217.4,36.43968357]
[1733841923415,0.12549,217.5,217.38,36.43968357]
[1733841923632,0.12549,217.48,217.38,36.43968357]
[1733841923842,0.12549,217.49,217.4,36.43968357]
[1733841924144,0.12549,217.48,217.36,36.43968357]
[1733841924425,0.12549,217.46,217.34,36.43968357]
[1733841924748,0.12549,217.38,217.24,36.43968357]
[1733841925022,0.12549,217.38,217.28,36.43968357]
[1733841925023,0.12549,217.36,217.28,36.43968357]
[1733841925335,0.25098,217.38,217.27,36.43968357]
[1733841925540,0.25098,217.38,217.17,11.6312]
[1733841925541,0.86279723,217.38,217.25,36.43968357]
[1733841925834,0.86279723,217.38,217.17,1.6312]
[1733841925835,0.12549,217.37,217.26,36.43968357]
[1733841926042,0.12549,217.37,217.27,36.43968357]
[1733841926202,0.25098,217.37,217.27,36.43968357]
[1733841926542,0.25098,217.33,217.22,36.43968357]
[1733841926844,20.0,217.34,217.2,30.0]
[1733841927000,4.5979,217.49,217.2,30.0]
[1733841927001,20.0,217.39,217.27,36.43968357]
[1733841927206,0.12549,217.37,217.25,36.43968357]
[1733841927409,3.04903159,217.35,217.25,36.43968357]
[1733841927836,0.12549,217.34,217.25,36.43968357]
[1733841928016,0.25098,217.33,217.24,36.43968357]
[1733841928223,0.86275294,217.33,217.24,36.43968357]
[1733841928426,0.12549,217.32,217.24,36.43968357]
[1733841928952,2.79805159,217.35,217.28,36.43968357]
[1733841929243,1.23922821,217.34,217.23,36.43968357]
[1733841929609,1.23922821,217.34,217.24,36.43968357]
[1733841930008,1.23922821,217.34,217.21,36.43968357]
[1733841930009,0.25098,217.31,217.21,36.43968357]
[1733841930253,0.25098,217.31,217.18,36.43968357]
[1733841930254,0.12549,217.3,217.18,36.43968357]
[1733841930539,0.12549,217.3,217.13,36.43968357]
[1733841930540,0.12549,217.25,217.13,36.43968357]
[1733841930746,0.12549,217.24,217.13,36.43968357]
[1733841930965,0.12549,217.24,217.1,36.43968357]
[1733841931119,0.12549,217.24,217.05,6.3765]
[1733841931120,0.12549,217.2,217.06,36.43968357]
[1733841931457,0.12549,217.2,217.0,30.0]
[1733841931458,0.12549,217.17,217.07,36.43968357]
[1733841931623,0.12549,217.18,217.1,36.43968357]
[1733841932016,0.12549,217.19,217.06,36.43968357]
[1733841932218,20.12549,217.18,217.04,36.43968357]
[1733841932434,20.12549,217.18,217.03,36.43968357]
[1733841932435,20.0,217.13,217.03,36.43968357]
[1733841932634,20.0,217.13,217.02,0.5697019]
[1733841932635,1.11462462,217.12,217.02,37.00938547]
[1733841932944,1.11462462,217.12,217.02,0.5697019]
[1733841933743,0.86370346,217.18,217.06,36.43968357]
[1733841933974,0.86350097,217.21,217.11,36.43968357]
[1733841934253,2.7179907,217.24,217.16,36.43968357]
[1733841934662,2.7179907,217.24,217.15,36.43968357]
[1733841934817,0.86311867,217.31,217.04,10.0]
[1733841935017,0.86311867,217.28,217.13,36.43968357]
[1733841935348,0.25098,217.27,217.09,36.43968357]
[1733841935616,0.25098,217.27,217.02,0.5697019]
[1733841935617,10.86334854,217.26,217.07,36.43968357]
[1733841935768,2.55238,217.25,217.08,36.43968357]
[1733841935968,0.25098,217.23,217.05,36.43968357]
[1733841936163,0.25098,217.21,217.02,37.00938547]
[1733841936392,10.86356551,217.22,217.02,37.00938547]
[1733841936393,20.37647,217.19,217.02,37.00938547]
[1733841936590,10.0,217.22,217.02,37.00938547]
[1733841936591,24.153354,217.17,217.02,37.00938547]
[1733841936807,0.37647,217.13,217.02,0.5697019]
[1733841937002,1.24021788,217.13,217.02,37.00938547]
[1733841937209,1.24011338,217.13,217.03,36.43968357]
[1733841937507,1.24011338,217.13,217.02,0.5697019]
[1733841938005,0.98913338,217.13,217.05,36.43968357]
[1733841938220,0.12549,217.15,217.03,36.43968357]
[1733841938379,0.25098,217.15,217.05,36.43968357]
[1733841938577,0.25098,217.15,217.06,36.43968357]
[1733841938773,0.12549,217.17,217.07,36.43968357]
[1733841938983,0.86343952,217.17,217.04,36.43968357]
[1733841939219,0.25098,217.2,217.02,0.5697019]
[1733841939391,0.25098,217.18,217.02,0.5697019]
[1733841939596,0.25098,217.16,217.02,0.5697019]
[1733841939789,0.25098,217.14,217.02,0.5697019]
[1733841940101,23.902374,217.17,217.02,0.5697019]
[1733841940302,20.0,217.14,217.02,0.5697019]
[1733841940515,0.12549,217.12,217.02,0.5697019]
[1733841940678,0.12549,217.12,217.04,36.43968357]
[1733841941000,0.12549,217.13,217.06,36.43968357]
[1733841941205,3.1653144,217.22,217.06,36.43968357]
[1733841941393,0.25098,217.21,217.02,349.00938547]
[1733841941588,0.86361772,217.2,217.06,36.43968357]
[1733841941806,0.86361772,217.2,217.02,30.5697019]
[1733841941807,0.86361772,217.2,217.03,36.43968357]
[1733841941989,0.86361772,217.2,217.02,37.00938547]
[1733841942189,0.25098,217.19,217.04,36.43968357]
[1733841942385,0.37647,217.17,217.02,37.00938547]
[1733841942710,0.12549,217.15,217.03,36.43968357]
[1733841942889,24.153354,217.15,217.02,37.00938547]
[1733841943088,0.12549,217.11,217.02,37.00938547]
[1733841943406,2.3025,217.16,217.02,37.00938547]
[1733841943407,0.86366386,217.19,217.07,36.43968357]
[1733841943600,3.16470874,217.25,217.08,36.43968357]
[1733841943784,13.16470874,217.25,217.05,36.43968357]
[1733841943994,0.25098,217.23,217.04,36.43968357]
[1733841944297,10.25098,217.21,217.02,0.5697019]
[1733841944606,1.114644,217.2,217.02,349.00938547]
[1733841944809,0.12549,217.16,217.02,349.00938547]
[1733841945015,0.12549,217.12,217.02,349.00938547]
[1733841945310,0.8636583,217.11,217.02,0.5697019]
[1733841945493,0.25098,217.06,217.02,0.5697019]
[1733841945693,0.12549,217.05,217.02,0.5697019]
[1733841945906,0.12549,217.04,217.02,0.5697019]
[1733841946089,0.12549,217.09,217.02,0.5697019]
[1733841946296,2.3025,217.16,217.04,36.43968357]
[1733841946589,3.16553394,217.2,217.07,36.43968357]
[1733841946789,3.16553394,217.2,217.08,36.43968357]
[1733841946790,0.86353394,217.2,217.08,36.43968357]
[1733841946991,0.86337072,217.22,217.1,36.43968357]
[1733841947293,0.86337072,217.22,217.05,30.0]
[1733841947294,1.6546,217.26,217.05,30.0]
[1733841947613,1.6546,217.26,217.03,36.43968357]
[1733841947614,0.86313194,217.3,217.17,36.43968357]
[1733841947918,0.8630276,217.35,217.22,36.43968357]
[1733841948121,0.25098,217.33,217.16,36.43968357]
[1733841948288,0.86307927,217.32,217.17,36.43968357]
[1733841948492,0.86307927,217.32,217.16,312.0]
[1733841948807,2.75013379,217.29,217.13,42.81618357]
[1733841949104,2.75013379,217.29,217.1,53.776884]
[1733841949105,0.25098,217.27,217.1,36.43968357]
[1733841949313,0.25098,217.27,217.03,36.43968357]
[1733841949314,0.25098,217.25,217.02,67.00938547]
[1733841949507,0.25098,217.25,217.03,36.43968357]
[1733841949508,0.25098,217.22,217.03,36.43968357]
[1733841949711,0.25098,217.2,217.04,36.43968357]
[1733841949891,0.98905522,217.19,217.08,36.43968357]
[1733841950085,0.12549,217.19,217.03,66.43968357]
[1733841950290,0.12549,217.19,217.1,36.43968357]
[1733841950552,0.12549,217.21,217.05,36.43968357]
[1733841950692,0.12549,217.19,217.04,36.43968357]
[1733841950888,0.12549,217.15,217.02,0.5697019]
[1733841951205,0.12549,217.12,217.02,0.5697019]
[1733841951411,0.12549,217.1,217.02,0.5697019]
[1733841951623,0.12549,217.09,217.02,0.5697019]
[1733841951785,0.55102192,217.09,217.02,0.5697019]
[1733841952517,0.42553192,217.09,217.02,37.00938547]
[1733841952725,0.42553192,217.09,217.05,36.43968357]
[1733841953234,0.42553192,217.09,217.02,0.5697019]
[1733841953429,0.42553192,217.09,217.07,36.43968357]
[1733841953584,0.42553192,217.09,217.08,60.21656757]
[1733841954431,0.42553192,217.09,217.08,60.59303757]
[1733841954599,0.42553192,217.09,217.08,82.10943757]